[Event "GER-ch Youth-U12 2022"]
[Site "Willingen"]
[Date "2022.06.05"]
[Round "1.20"]
[White "Draude, Theo"]
[Black "Herrmann, Arthur"]
[Result "0-1"]
[ECO "B18"]
[WhiteElo "1397"]
[BlackElo "1507"]
[Annotator "NA RC COMBH"]
[PlyCount "82"]
[EventDate "2022.06.05"]
[EventType "swiss"]
[EventRounds "9"]
[EventCountry "GER"]
[SourceTitle "playchess.com"]
[Source "ChessBase"]
[SourceQuality "1"]
[TimeControl "40/4500+30:900+30"]

1. e4 {[%emt 0:00:02]} c6 {[%emt 0:00:00]} 2. d4 {[%emt 0:00:00]} d5 {[%emt 0:00:00]} 3. Nd2 {[%emt 0:00:00]} dxe4 {[%emt 0:00:00]} 4. Nxe4 {[%emt 0:00:00]} Bf5 {[%emt 0:00:00]} 5. Ng3 {[%emt 0:00:00]} Bg6 {[%emt 0:00:00]} 6. Nf3 {[%emt 0:00:00]} Nd7 {[%emt 0:00:00]} 7. Bd3 {[%emt 0:00:00]} Bxd3 {[%emt 0:00:00]} 8. Qxd3 {[%emt 0:00:00]} e6 {[%emt 0:00:00]} 9. c4 {[%emt 0:00:00]} Ngf6 {[%emt 0:00:00]} 10. O-O {[%emt 0:00:00]} Be7 {[%emt 0:00:00]} 11. a3 {[%emt 0:01:56]} a5 {[%emt 0:04:26]} 12. Qb3 {[%emt 0:00:00]} Qc7 {[%emt 0:04:20]} 13. Be3 {[%emt 0:00:00]} a4 {[%emt 0:05:28]} 14. Qc2 {[%emt 0:00:00]} O-O {[%emt 0:01:57]} 15. Rad1 {[%emt 0:00:00]} Rfd8 {[%emt 0:03:56]} 16. Ne2 {[%emt 0:00:00]} Bd6 {[%emt 0:15:06]} 17. Qd2 {[%emt 0:00:00]} e5 {[%emt 0:03:41]} 18. d5 {[%emt 0:00:00]} e4 {[%emt 0:06:37]} 19. Nfd4 {[%emt 0:00:00]} Bxh2+ {[%emt 0:01:30]} 20. Kh1 {[%emt 0:00:00]} Be5 {[%emt 0:02:25]} 21. Nf5 {[%emt 0:01:28]} cxd5 {[%emt 0:11:28]} 22. cxd5 {[%emt 0:00:49]} Qa5 {[%emt 0:02:31]} 23. Nc3 {[%emt 0:00:58]} Nc5 {[%emt 0:08:16]} 24. Bxc5 {[%emt 0:02:11]} Qxc5 {[%emt 0:00:08]} 25. Nxg7 {[%emt 0:00:10]} e3 {[%emt 0:02:00]} 26. Ne6 {[%emt 0:04:19]} fxe6 {[%emt 0:01:05]} 27. fxe3 {[%emt 0:00:32]} exd5 {[%emt 0:01:37]} 28. e4 {[%emt 0:00:48]} Qe7 {[%emt 0:01:37]} 29. Qg5+ {[%emt 0:00:36]} Kh8 {[%emt 0:00:25]} 30. Rf5 {[%emt 0:01:05]} Bxc3 {[%emt 0:01:59]} 31. bxc3 {[%emt 0:00:18]} Ng8 {[%emt 0:03:26]} 32. Qh5 {[%emt 0:00:05]} Rf8 {[%emt 0:01:11]} 33. Rfxd5 {[%emt 0:00:43]} Nf6 {[%emt 0:00:33]} 34. Qh3 {[%emt 0:01:43]} Nxd5 {[%emt 0:00:10]} 35. Rxd5 {[%emt 0:00:13]} Rad8 {[%emt 0:00:47]} 36. Rh5 {[%emt 0:00:37]} Qd7 {[%emt 0:01:16]} 37. Qh4 {[%emt 0:00:25]} Qg7 {[%emt 0:00:53]} 38. Rf5 {[%emt 0:00:11]} Rd1+ {[%emt 0:00:18]} 39. Kh2 {[%emt 0:00:06]} Rxf5 {[%emt 0:00:16]} 40. exf5 {[%emt 0:00:04]} Qe5+ {[%emt 0:00:12]} 41. g3 {[%emt 0:15:29]} Qe2+ {[%emt 0:15:05]} 0-1

[Event "GER-ch Youth-U12 2022"]
[Site "Willingen"]
[Date "2022.06.05"]
[Round "1.21"]
[White "Uyar, Levin"]
[Black "Aweh, Mads"]
[Result "1/2-1/2"]
[ECO "B33"]
[WhiteElo "1306"]
[BlackElo "1438"]
[Annotator "NA RC COMBH"]
[PlyCount "68"]
[EventDate "2022.06.05"]
[EventType "swiss"]
[EventRounds "9"]
[EventCountry "GER"]
[SourceTitle "playchess.com"]
[Source "ChessBase"]
[SourceQuality "1"]
[TimeControl "40/4500+30:900+30"]

1. e4 {[%emt 0:00:00]} c5 {[%emt 0:00:00]} 2. Nf3 {[%emt 0:00:00]} Nc6 {[%emt 0:00:00]} 3. d4 {[%emt 0:00:00]} cxd4 {[%emt 0:00:00]} 4. Nxd4 {[%emt 0:00:00]} Nf6 {[%emt 0:00:00]} 5. Nc3 {[%emt 0:00:00]} e5 {[%emt 0:00:00]} 6. Ndb5 {[%emt 0:00:29]} d6 {[%emt 0:00:00]} 7. Bg5 {[%emt 0:00:00]} a6 {[%emt 0:00:00]} 8. Na3 {[%emt 0:00:00]} b5 {[%emt 0:00:00]} 9. Nd5 {[%emt 0:00:00]} Be7 {[%emt 0:00:00]} 10. Bxf6 {[%emt 0:00:00]} Bxf6 {[%emt 0:00:00]} 11. c3 {[%emt 0:00:00]} Bg5 {[%emt 0:00:00]} 12. Be2 {[%emt 0:00:00]} O-O {[%emt 0:00:00]} 13. O-O {[%emt 0:00:00]} Be6 {[%emt 0:00:00]} 14. Nc2 {[%emt 0:00:00]} f5 {[%emt 0:00:00]} 15. Bf3 {[%emt 0:05:27]} Rc8 {[%emt 0:00:00]} 16. Nce3 {[%emt 0:02:56]} Bxe3 {[%emt 0:00:00]} 17. Nxe3 {[%emt 0:03:49]} fxe4 {[%emt 0:00:00]} 18. Bxe4 {[%emt 0:01:59]} Ne7 {[%emt 0:00:00]} 19. Qc2 {[%emt 0:17:03]} h6 {[%emt 0:00:14]} 20. Rfd1 {[%emt 0:03:54]} d5 {[%emt 0:03:37]} 21. Qb3 {[%emt 0:06:25]} Qb6 {[%emt 0:00:52]} 22. Bxd5 {[%emt 0:15:43]} Nxd5 {[%emt 0:00:46]} 23. Rxd5 {[%emt 0:00:55]} Bxd5 {[%emt 0:00:49]} 24. Qxd5+ {[%emt 0:00:13]} Kh8 {[%emt 0:00:15]} 25. Qxe5 {[%emt 0:00:27]} Rce8 {[%emt 0:00:30]} 26. Qd4 {[%emt 0:02:01]} Qxd4 {[%emt 0:00:20]} 27. cxd4 {[%emt 0:00:06]} Re4 {[%emt 0:00:50]} 28. Rd1 {[%emt 0:00:46]} Rff4 {[%emt 0:00:41]} 29. g3 {[%emt 0:00:25]} Rf8 {[%emt 0:00:53]} 30. d5 {[%emt 0:01:20]} g6 {[%emt 0:00:46]} 31. Kg2 {[%emt 0:02:43]} Kg7 {[%emt 0:00:22]} 32. Rc1 {[%emt 0:01:23]} Rf7 {[%emt 0:00:53]} 33. b3 {[%emt 0:02:01]} Rd4 {[%emt 0:01:15]} 34. Rc2 {[%emt 0:02:01]} Kh7 {[%emt 0:02:47]} 1/2-1/2

[Event "GER-ch Youth-U12 2022"]
[Site "Willingen"]
[Date "2022.06.05"]
[Round "1.22"]
[White "Albrecht, Neil"]
[Black "Burkart, Lloyd Shang"]
[Result "1-0"]
[ECO "B41"]
[WhiteElo "1376"]
[BlackElo "1559"]
[Annotator "NA RC COMBH"]
[PlyCount "89"]
[EventDate "2022.06.05"]
[EventType "swiss"]
[EventRounds "9"]
[EventCountry "GER"]
[SourceTitle "playchess.com"]
[Source "ChessBase"]
[SourceQuality "1"]
[TimeControl "40/4500+30:900+30"]

1. e4 {[%emt 0:00:00]} c5 {[%emt 0:00:00]} 2. Nf3 {[%emt 0:00:00]} e6 {[%emt 0:00:00]} 3. d4 {[%emt 0:00:00]} cxd4 {[%emt 0:00:00]} 4. Nxd4 {[%emt 0:00:00]} a6 {[%emt 0:00:00]} 5. c4 {[%emt 0:00:00]} Nf6 {[%emt 0:00:00]} 6. f3 {[%emt 0:00:00]} Qc7 {[%emt 0:00:03]} 7. Nc3 {[%emt 0:00:00]} Bb4 {[%emt 0:03:25]} 8. Qb3 {[%emt 0:00:33]} Be7 {[%emt 0:08:33]} 9. Be3 {[%emt 0:01:06]} d6 {[%emt 0:00:56]} 10. Be2 {[%emt 0:02:59]} Nbd7 {[%emt 0:03:03]} 11. O-O-O {[%emt 0:05:17]} Nc5 {[%emt 0:07:37]} 12. Qc2 {[%emt 0:00:19]} b6 {[%emt 0:07:36]} 13. Nb3 {[%emt 0:03:05]} Bb7 {[%emt 0:10:09]} 14. Rd2 {[%emt 0:02:06]} O-O-O {[%emt 0:08:31]} 15. Rhd1 {[%emt 0:01:19]} Rd7 {[%emt 0:04:16]} 16. Na1 {[%emt 0:03:13]} Rdd8 {[%emt 0:02:06]} 17. b4 {[%emt 0:01:43]} Ncd7 {[%emt 0:00:47]} 18. Nb3 {[%emt 0:00:35]} Ne5 {[%emt 0:00:55]} 19. Na4 {[%emt 0:00:44]} Nfd7 {[%emt 0:03:40]} 20. f4 {[%emt 0:11:05]} Ng6 {[%emt 0:03:07]} 21. e5 {[%emt 0:04:59]} d5 {[%emt 0:06:04]} 22. cxd5 {[%emt 0:03:15]} Bxb4 {[%emt 0:04:34]} 23. Qxc7+ {[%emt 0:01:47]} Kxc7 {[%emt 0:00:12]} 24. Rc2+ {[%emt 0:00:15]} Kb8 {[%emt 0:00:28]} 25. d6 {[%emt 0:01:08]} Rc8 {[%emt 0:08:13]} 26. g3 {[%emt 0:02:58]} Rxc2+ {[%emt 0:01:22]} 27. Kxc2 {[%emt 0:00:02]} Rc8+ {[%emt 0:02:32]} 28. Kb2 {[%emt 0:00:34]} Bd5 {[%emt 0:00:50]} 29. Bxa6 {[%emt 0:00:42]} Rd8 {[%emt 0:00:28]} 30. Nxb6 {[%emt 0:01:02]} Ka7 {[%emt 0:00:23]} 31. Nxd5+ {[%emt 0:00:09]} Bc5 {[%emt 0:00:28]} 32. Nxc5 {[%emt 0:00:12]} exd5 {[%emt 0:00:21]} 33. Nxd7+ {[%emt 0:00:37]} Kxa6 {[%emt 0:00:07]} 34. Nc5+ {[%emt 0:01:10]} Kb5 {[%emt 0:00:08]} 35. Rxd5 {[%emt 0:00:27]} Kc4 {[%emt 0:00:20]} 36. Rd3 {[%emt 0:00:13]} Nf8 {[%emt 0:00:32]} 37. Rb3 {[%emt 0:00:25]} Rc8 {[%emt 0:00:14]} 38. Rc3+ {[%emt 0:00:37]} Kd5 {[%emt 0:00:29]} 39. Nb3 {[%emt 0:00:21]} Rd8 {[%emt 0:00:12]} 40. a4 {[%emt 0:00:09]} Ne6 {[%emt 0:00:08]} 41. a5 {[%emt 0:15:31]} Rb8 {[%emt 0:15:09]} 42. a6 {[%emt 0:00:28]} Nd8 {[%emt 0:00:12]} 43. a7 {[%emt 0:00:14]} Ra8 {[%emt 0:00:03]} 44. d7 {[%emt 0:00:14]} Ke6 {[%emt 0:00:42]} 45. Rc8 {[%emt 0:01:22]} 1-0

[Event "GER-ch Youth-U12 2022"]
[Site "Willingen"]
[Date "2022.06.05"]
[Round "1.23"]
[White "Noennig, Jakob"]
[Black "Prashanthakumar, Arju"]
[Result "1-0"]
[ECO "C54"]
[WhiteElo "1556"]
[BlackElo "1265"]
[Annotator "NA RC COMBH"]
[PlyCount "79"]
[EventDate "2022.06.05"]
[EventType "swiss"]
[EventRounds "9"]
[EventCountry "GER"]
[SourceTitle "playchess.com"]
[Source "ChessBase"]
[SourceQuality "1"]
[TimeControl "40/4500+30:900+30"]

1. e4 {[%emt 0:00:00]} e5 {[%emt 0:00:00]} 2. Nf3 {[%emt 0:00:00]} Nc6 {[%emt 0:00:00]} 3. Bc4 {[%emt 0:00:00]} Bc5 {[%emt 0:00:00]} 4. c3 {[%emt 0:00:00]} Nf6 {[%emt 0:00:00]} 5. d4 {[%emt 0:00:00]} exd4 {[%emt 0:00:00]} 6. e5 {[%emt 0:00:00]} d5 {[%emt 0:00:00]} 7. Bb5 {[%emt 0:00:00]} Ne4 {[%emt 0:00:00]} 8. cxd4 {[%emt 0:00:00]} Bb4+ {[%emt 0:00:00]} 9. Bd2 {[%emt 0:00:00]} Bxd2+ {[%emt 0:00:00]} 10. Nbxd2 {[%emt 0:00:00]} Nxd2 {[%emt 0:01:01]} 11. Qxd2 {[%emt 0:00:00]} Bd7 {[%emt 0:02:25]} 12. O-O {[%emt 0:00:00]} O-O {[%emt 0:07:10]} 13. Bxc6 {[%emt 0:00:00]} Bxc6 {[%emt 0:04:29]} 14. Rfc1 {[%emt 0:00:00]} Qd7 {[%emt 0:09:44]} 15. Rc5 {[%emt 0:00:00]} Rfe8 {[%emt 0:08:59]} 16. Rac1 {[%emt 0:01:45]} Re6 {[%emt 0:05:40]} 17. b4 {[%emt 0:00:49]} b6 {[%emt 0:05:31]} 18. R5c3 {[%emt 0:00:40]} Rc8 {[%emt 0:00:56]} 19. Qc2 {[%emt 0:01:54]} Bb5 {[%emt 0:08:09]} 20. Rxc7 {[%emt 0:00:53]} Qxc7 {[%emt 0:03:20]} 21. Qxc7 {[%emt 0:00:10]} Rxc7 {[%emt 0:00:21]} 22. Rc2 {[%emt 0:00:07]} Rcc6 23. Rxc6 {[%emt 0:00:30]} a6 {[%emt 0:01:38]} 24. Rc7 {[%emt 0:02:28]} h6 {[%emt 0:05:17]} 25. g3 {[%emt 0:01:19]} Rc6 {[%emt 0:01:56]} 26. Rxc6 {[%emt 0:00:40]} Bxc6 {[%emt 0:00:27]} 27. Nh4 {[%emt 0:00:13]} Kf8 {[%emt 0:01:59]} 28. Nf5 {[%emt 0:02:36]} Bd7 {[%emt 0:03:00]} 29. Nd6 {[%emt 0:01:28]} Ke7 {[%emt 0:01:29]} 30. Kg2 {[%emt 0:01:20]} f6 {[%emt 0:02:27]} 31. f4 {[%emt 0:03:21]} fxe5 {[%emt 0:02:40]} 32. f5 {[%emt 0:00:07]} a5 {[%emt 0:03:13]} 33. dxe5 {[%emt 0:00:37]} a4 {[%emt 0:02:29]} 34. b5 {[%emt 0:00:44]} a3 {[%emt 0:00:33]} 35. Kf3 {[%emt 0:00:09]} h5 {[%emt 0:00:27]} 36. Ke3 {[%emt 0:01:55]} Kf8 {[%emt 0:02:32]} 37. h3 {[%emt 0:00:09]} Ke7 {[%emt 0:00:50]} 38. Kd4 {[%emt 0:00:13]} Kf8 {[%emt 0:00:57]} 39. Kxd5 {[%emt 0:00:20]} Be8 {[%emt 0:00:38]} 40. e6 {[%emt 0:00:14]} 1-0

[Event "GER-ch Youth-U12 2022"]
[Site "Willingen"]
[Date "2022.06.05"]
[Round "1.24"]
[White "Gavrylyuk, Oleksandr"]
[Black "Limmer, Marco"]
[Result "0-1"]
[ECO "C11"]
[WhiteElo "1272"]
[BlackElo "1825"]
[Annotator "NA RC COMBH"]
[PlyCount "98"]
[EventDate "2022.06.05"]
[EventType "swiss"]
[EventRounds "9"]
[EventCountry "GER"]
[SourceTitle "playchess.com"]
[Source "ChessBase"]
[SourceQuality "1"]
[TimeControl "40/4500+30:900+30"]

1. e4 {[%emt 0:00:00]} e6 {[%emt 0:00:00]} 2. d4 {[%emt 0:00:00]} d5 {[%emt 0:00:00]} 3. Nc3 {[%emt 0:00:00]} Nf6 {[%emt 0:00:00]} 4. e5 {[%emt 0:00:00]} Nfd7 {[%emt 0:00:00]} 5. Nf3 {[%emt 0:00:00]} c5 {[%emt 0:00:00]} 6. Bg5 {[%emt 0:00:00]} Qb6 {[%emt 0:00:00]} 7. Be3 {[%emt 0:01:11]} Nc6 {[%emt 0:00:00]} 8. Bb5 {[%emt 0:03:15]} a6 {[%emt 0:00:02]} 9. Ba4 {[%emt 0:03:29]} Qxb2 {[%emt 0:03:14]} 10. Bxc6 {[%emt 0:04:14]} bxc6 {[%emt 0:04:19]} 11. Na4 {[%emt 0:04:52]} Qa3 {[%emt 0:02:36]} (11... Qb5 $142 12. Nxc5 Nxc5 13. dxc5 Bxc5) 12. c3 {[%emt 0:03:16]} cxd4 {[%emt 0:03:10]} 13. Bxd4 $19 {[%emt 0:03:19]} (13. Bc1 $15 Qe7 14. cxd4) 13... Rb8 {[%emt 0:09:31]} 14. O-O {[%emt 0:02:17]} Be7 {[%emt 0:08:47]} 15. Qc2 {[%emt 0:07:35]} Nc5 {[%emt 0:00:00]} 16. Nxc5 {[%emt 0:04:06]} Bxc5 {[%emt 0:01:17]} 17. Rab1 {[%emt 0:04:01]} Rxb1 {[%emt 0:09:56]} 18. Rxb1 {[%emt 0:00:42]} Qa5 {[%emt 0:05:41]} 19. Nd2 {[%emt 0:05:47]} Bf8 {[%emt 0:04:10]} 20. c4 {[%emt 0:03:13]} Qc7 {[%emt 0:06:02]} 21. Rb6 {[%emt 0:02:42]} (21. Bb6 $1 $14 {keeps the upper hand.} Qd7 22. Nb3) 21... c5 {[%emt 0:00:50]} 22. Qa4+ {[%emt 0:02:11]} Bd7 {[%emt 0:00:16]} 23. Qa5 {[%emt 0:00:41]} cxd4 {[%emt 0:01:34]} 24. Rxe6+ {[%emt 0:00:17]} Kd8 {[%emt 0:00:16]} 25. Qxc7+ {[%emt 0:00:51]} Kxc7 {[%emt 0:00:09]} 26. Rxa6 {[%emt 0:00:11]} Kb7 {[%emt 0:03:16]} 27. Ra5 {[%emt 0:00:25]} Bb4 {[%emt 0:02:12]} 28. Rxd5 {[%emt 0:00:24]} Bc6 {[%emt 0:01:26]} 29. Rxd4 {[%emt 0:00:23]} Ra8 {[%emt 0:00:16]} 30. Nb3 {[%emt 0:01:03]} Rxa2 {[%emt 0:00:32]} 31. h3 {[%emt 0:00:59]} Rb2 {[%emt 0:00:40]} 32. Rd3 {[%emt 0:00:59]} Be1 {[%emt 0:03:11]} 33. f3 {[%emt 0:01:10]} Bg3 {[%emt 0:00:46]} 34. Nd2 {[%emt 0:00:41]} Bxe5 {[%emt 0:00:37]} 35. Rb3+ {[%emt 0:00:58]} Rxb3 {[%emt 0:00:07]} 36. Nxb3 {[%emt 0:00:07]} Kb6 {[%emt 0:00:25]} 37. Kf2 {[%emt 0:00:44]} Ba4 {[%emt 0:00:15]} 38. Nd2 {[%emt 0:00:16]} h6 {[%emt 0:00:47]} 39. Ke3 {[%emt 0:00:25]} Kc5 {[%emt 0:01:25]} 40. Ke4 {[%emt 0:00:37]} Bc3 {[%emt 0:01:02]} 41. Kd3 {[%emt 0:15:10]} Bxd2 {[%emt 0:15:12]} 42. Kxd2 {[%emt 0:00:08]} Kxc4 {[%emt 0:00:03]} 43. Ke3 {[%emt 0:00:14]} Bc2 {[%emt 0:00:29]} 44. g3 {[%emt 0:00:09]} Kc3 {[%emt 0:00:57]} 45. Kf4 {[%emt 0:00:15]} Kd4 {[%emt 0:00:10]} 46. Kg4 {[%emt 0:00:28]} Ke3 {[%emt 0:00:27]} 47. f4 {[%emt 0:00:10]} Kf2 {[%emt 0:00:16]} 48. h4 {[%emt 0:00:16]} g6 {[%emt 0:00:58]} 49. Kh3 {[%emt 0:00:09]} Kf3 {[%emt 0:00:19]} 0-1

[Event "GER-ch Youth-U12 2022"]
[Site "Willingen"]
[Date "2022.06.05"]
[Round "1.25"]
[White "Blodig, Vincent"]
[Black "Pham, Jacky"]
[Result "1-0"]
[ECO "C02"]
[WhiteElo "1461"]
[BlackElo "1189"]
[Annotator "NA RC COMBH"]
[PlyCount "43"]
[EventDate "2022.06.05"]
[EventType "swiss"]
[EventRounds "9"]
[EventCountry "GER"]
[SourceTitle "playchess.com"]
[Source "ChessBase"]
[SourceQuality "1"]
[TimeControl "40/4500+30:900+30"]

1. e4 {[%emt 0:00:00]} e6 {[%emt 0:00:00]} 2. d4 {[%emt 0:00:00]} d5 {[%emt 0:00:00]} 3. e5 {[%emt 0:00:00]} c5 {[%emt 0:00:00]} 4. c3 {[%emt 0:00:00]} Nc6 {[%emt 0:00:00]} 5. Nf3 {[%emt 0:00:00]} Qb6 {[%emt 0:00:00]} 6. a3 {[%emt 0:00:00]} Bd7 {[%emt 0:00:00]} 7. b4 {[%emt 0:00:00]} cxd4 {[%emt 0:00:00]} 8. cxd4 {[%emt 0:00:00]} a5 {[%emt 0:00:00]} 9. b5 {[%emt 0:00:00]} Nce7 {[%emt 0:00:00]} 10. Nc3 {[%emt 0:00:00]} f6 {[%emt 0:00:00]} 11. Na4 {[%emt 0:00:00]} Qc7 {[%emt 0:00:00]} 12. Bf4 {[%emt 0:00:00]} Ng6 {[%emt 0:00:00]} 13. Bg3 {[%emt 0:00:00]} Rc8 {[%emt 0:00:19]} 14. exf6 {[%emt 0:02:38]} Qd8 {[%emt 0:01:50]} 15. f7+ {[%emt 0:09:25]} Kxf7 {[%emt 0:02:08]} 16. Bd3 {[%emt 0:02:11]} Nf6 {[%emt 0:01:10]} 17. Bxg6+ {[%emt 0:12:04]} hxg6 {[%emt 0:01:42]} 18. Ne5+ {[%emt 0:00:18]} Ke8 {[%emt 0:00:20]} 19. Qd3 {[%emt 0:07:44]} g5 {[%emt 0:01:59]} 20. Qg6+ {[%emt 0:00:18]} Ke7 {[%emt 0:00:32]} 21. Qf7+ {[%emt 0:00:11]} Kd6 {[%emt 0:00:11]} 22. Nc4# {[%emt 0:00:13]} 1-0

[Event "GER-ch Youth-U12 2022"]
[Site "Willingen"]
[Date "2022.06.05"]
[Round "1.26"]
[White "Li, Luxuan"]
[Black "Wylie, Leonard"]
[Result "1-0"]
[ECO "C01"]
[WhiteElo "1235"]
[BlackElo "1733"]
[Annotator "NA RC COMBH"]
[PlyCount "83"]
[EventDate "2022.06.05"]
[EventType "swiss"]
[EventRounds "9"]
[EventCountry "GER"]
[SourceTitle "playchess.com"]
[Source "ChessBase"]
[SourceQuality "1"]
[TimeControl "40/4500+30:900+30"]

1. e4 {[%emt 0:00:00]} e6 {[%emt 0:00:00]} 2. d4 {[%emt 0:00:00]} d5 {[%emt 0:00:00]} 3. exd5 {[%emt 0:00:00]} exd5 {[%emt 0:00:00]} 4. Nc3 {[%emt 0:00:00]} Nc6 {[%emt 0:00:00]} 5. Bf4 {[%emt 0:00:00]} Bb4 {[%emt 0:00:00]} 6. a3 {[%emt 0:00:00]} Ba5 {[%emt 0:00:00]} 7. Bb5 {[%emt 0:00:00]} Nge7 {[%emt 0:00:00]} 8. Nge2 {[%emt 0:00:00]} Be6 {[%emt 0:00:00]} 9. O-O {[%emt 0:00:00]} Qd7 {[%emt 0:00:00]} 10. Re1 {[%emt 0:00:00]} O-O-O {[%emt 0:00:00]} 11. b4 {[%emt 0:00:00]} Bb6 {[%emt 0:00:00]} 12. Na4 {[%emt 0:00:00]} f6 {[%emt 0:00:00]} 13. Rc1 {[%emt 0:02:46]} a6 {[%emt 0:00:00]} 14. Nxb6+ {[%emt 0:01:13]} cxb6 {[%emt 0:00:00]} 15. Bd3 {[%emt 0:00:34]} h5 {[%emt 0:00:00]} 16. h4 {[%emt 0:03:37]} Rdg8 {[%emt 0:01:02]} 17. Qd2 {[%emt 0:02:53]} Bf5 {[%emt 0:02:23]} 18. Ng3 {[%emt 0:04:48]} Be6 {[%emt 0:06:51]} 19. Qe2 {[%emt 0:04:01]} Bg4 {[%emt 0:06:28]} 20. f3 {[%emt 0:01:50]} Bf5 {[%emt 0:01:55]} 21. Qd2 {[%emt 0:01:39]} g6 {[%emt 0:06:08]} 22. b5 {[%emt 0:02:24]} Nb8 {[%emt 0:06:09]} 23. a4 {[%emt 0:04:22]} Qd8 {[%emt 0:04:07]} 24. Qb4 {[%emt 0:11:13]} Rg7 {[%emt 0:03:27]} 25. Re2 {[%emt 0:10:35]} a5 {[%emt 0:06:11]} 26. Qa3 {[%emt 0:00:00]} Rhh7 {[%emt 0:01:09]} 27. c4 {[%emt 0:00:00]} Bxd3 {[%emt 0:01:33]} 28. Qxd3 {[%emt 0:00:00]} Kd7 {[%emt 0:00:35]} 29. cxd5 {[%emt 0:00:09]} Nxd5 {[%emt 0:00:59]} 30. Qe4 {[%emt 0:04:59]} Qg8 {[%emt 0:04:32]} 31. Bxb8 {[%emt 0:01:40]} Re7 {[%emt 0:00:47]} 32. Qc2 {[%emt 0:02:18]} Qxb8 {[%emt 0:00:48]} 33. Rxe7+ {[%emt 0:00:59]} Nxe7 {[%emt 0:00:52]} 34. Ne4 {[%emt 0:00:50]} Qf4 {[%emt 0:01:38]} 35. d5 {[%emt 0:01:54]} Rh8 {[%emt 0:03:53]} 36. Rd1 {[%emt 0:01:11]} Qe5 {[%emt 0:05:05]} 37. d6 {[%emt 0:00:53]} Nd5 {[%emt 0:01:06]} 38. Rxd5 {[%emt 0:00:49]} Qe6 {[%emt 0:02:13]} 39. Qc7+ {[%emt 0:02:23]} Ke8 {[%emt 0:00:28]} 40. d7+ {[%emt 0:00:58]} Kf7 {[%emt 0:00:23]} 41. d8=Q+ {[%emt 0:00:23]} Qe7 {[%emt 0:15:12]} 42. Qcxe7# {[%emt 0:15:14]} 1-0

[Event "GER-ch Youth-U12 2022"]
[Site "Willingen"]
[Date "2022.06.05"]
[Round "1.27"]
[White "Kulkovets, Roman"]
[Black "Steven, Matthias"]
[Result "1-0"]
[ECO "B76"]
[WhiteElo "1099"]
[BlackElo "1376"]
[Annotator "NA RC COMBH"]
[PlyCount "53"]
[EventDate "2022.06.05"]
[EventType "swiss"]
[EventRounds "9"]
[EventCountry "GER"]
[SourceTitle "playchess.com"]
[Source "ChessBase"]
[SourceQuality "1"]
[TimeControl "40/4500+30:900+30"]

1. e4 {[%emt 0:00:00]} c5 {[%emt 0:00:00]} 2. Nf3 {[%emt 0:00:07]} Nc6 {[%emt 0:00:00]} 3. d4 {[%emt 0:00:00]} cxd4 {[%emt 0:00:00]} 4. Nxd4 {[%emt 0:00:00]} g6 {[%emt 0:00:00]} 5. Be3 {[%emt 0:00:00]} Bg7 {[%emt 0:00:00]} 6. Nc3 {[%emt 0:00:00]} Nf6 {[%emt 0:00:00]} 7. f3 {[%emt 0:00:00]} O-O {[%emt 0:00:00]} 8. Qd2 {[%emt 0:00:00]} d6 {[%emt 0:00:00]} 9. O-O-O {[%emt 0:00:00]} Bd7 {[%emt 0:00:00]} 10. g4 {[%emt 0:00:00]} Nxd4 {[%emt 0:00:00]} 11. Bxd4 {[%emt 0:00:00]} a6 {[%emt 0:00:00]} 12. h4 {[%emt 0:00:00]} e5 {[%emt 0:00:00]} 13. Be3 {[%emt 0:00:00]} Ne8 {[%emt 0:00:00]} 14. h5 {[%emt 0:00:00]} Be6 {[%emt 0:00:00]} 15. Qh2 {[%emt 0:00:00]} Nf6 {[%emt 0:00:00]} 16. Nd5 {[%emt 0:00:00]} Bxd5 {[%emt 0:00:00]} 17. Rxd5 {[%emt 0:00:00]} Nxd5 {[%emt 0:00:00]} 18. hxg6 {[%emt 0:00:00]} fxg6 {[%emt 0:00:06]} 19. Qxh7+ {[%emt 0:00:00]} Kf7 {[%emt 0:00:15]} 20. Bc4 {[%emt 0:00:00]} Qf6 {[%emt 0:01:28]} 21. g5 {[%emt 0:00:00]} Qxf3 {[%emt 0:01:04]} 22. Bxd5+ {[%emt 0:00:00]} Ke8 {[%emt 0:00:21]} 23. Qxg6+ {[%emt 0:00:00]} Kd8 {[%emt 0:01:13]} 24. Bb6+ {[%emt 0:00:00]} Kc8 {[%emt 0:00:12]} 25. Qe6+ {[%emt 0:00:00]} Kb8 {[%emt 0:00:35]} 26. Qxd6+ {[%emt 0:00:00]} Kc8 {[%emt 0:03:23]} 27. Be6# {[%emt 0:00:00]} 1-0